bitfinex/quotes_ETHUSD_20220105
["timestamp","ask_amount","ask_price","bid_price","bid_amount"]
[1641359107671,0.05253494,3805.3,3805.2,0.00738951]
[1641359108073,3.0189037,3805.3,3805.2,0.00738951]
[1641359108673,0.05253494,3805.3,3805.2,0.00738951]
[1641359109274,0.070004,3805.3,3805.2,0.00738951]
[1641359113230,0.882704,3805.3,3805.2,0.00738951]
[1641359113829,0.882704,3805.3,3804.7,0.01023163]
[1641359114032,0.882704,3805.3,3804.6,0.01080005]
[1641359114232,1.4097332,3805.1,3804.4,0.0119369]
[1641359114484,1.7445332,3805.1,3804.4,0.0119369]
[1641359114888,1.7445332,3805.1,3803.9,0.65726]
[1641359114889,0.01747435,3804.9,3803.9,0.65726]
[1641359115080,0.01747435,3804.9,3804.0,0.01421059]
[1641359115483,0.01747435,3804.9,3803.8,0.65727]
[1641359115484,1.17371926,3804.8,3803.9,0.01477901]
[1641359115680,1.17371926,3804.8,3803.8,0.65727]
[1641359115681,1.83101926,3804.8,3803.7,4.60149]
[1641359115882,1.83101926,3804.8,3803.9,0.3]
[1641359116085,0.00454738,3804.7,3803.7,5.20149]
[1641359116483,0.00397896,3804.6,3803.7,5.20149]
[1641359116882,0.00341054,3804.5,3803.7,5.20149]
[1641359117082,0.00341054,3804.5,3803.7,5.14529]
[1641359117282,0.00284211,3804.4,3803.7,5.14529]
[1641359117684,0.00227369,3804.3,3803.7,5.80257]
[1641359117885,0.00227369,3804.3,3803.8,0.657273]
[1641359118086,0.00170527,3804.2,3803.9,0.3]
[1641359118532,0.00113684,3804.1,3803.7,0.3]
[1641359118733,0.00113684,3804.1,3804.0,0.65724]
[1641359118933,0.00341054,3804.5,3804.0,0.65724]
[1641359119133,0.00113684,3804.1,3804.0,0.95724]
[1641359119332,0.00284211,3804.4,3804.1,0.3]
[1641359119533,2.96695781,3804.6,3804.1,0.3]
[1641359119734,1.17371926,3804.8,3804.1,0.9572227]
[1641359119935,0.00341054,3804.5,3804.1,0.6572227]
[1641359120138,0.00341054,3804.5,3804.2,0.6]
[1641359120335,0.00284211,3804.4,3804.2,1.2572]
[1641359120538,0.00284211,3804.4,3804.3,0.3]
[1641359120735,2.96724046,3804.7,3804.3,1.2571942]
[1641359120938,2.96724046,3804.7,3804.4,0.65716]
[1641359121135,0.00397896,3804.6,3804.4,0.95716]
[1641359121435,2.96724046,3804.7,3804.4,1.91432]
[1641359121436,0.00341054,3804.5,3804.4,1.91432]
[1641359122175,0.00341054,3804.5,3804.4,0.6]
[1641359122375,0.00341054,3804.5,3804.4,0.3]
[1641359122578,0.00341054,3804.5,3804.3,1.2571991]
[1641359122779,0.00341054,3804.5,3804.3,0.9571991]
[1641359122975,0.00284211,3804.4,3804.3,0.9571991]
[1641359124677,0.00534291,3804.4,3804.3,0.9571991]
[1641359126326,0.00534291,3804.4,3804.3,1.9571991]
[1641359128231,0.05544679,3804.4,3804.3,1.9571991]
[1641359129474,0.05544679,3804.4,3804.3,17.2971991]
[1641359129677,0.0546229,3804.4,3804.3,17.2971991]
[1641359130679,0.0546229,3804.4,3804.3,17.6761991]
[1641359131081,0.0546229,3804.4,3804.3,17.5761991]
[1641359134543,0.0008545,3804.4,3804.3,21.1261991]
[1641359134746,0.97335001,3804.5,3804.4,3.3]
[1641359134942,0.01747435,3804.9,3804.5,2.95]
[1641359135141,0.01747435,3804.9,3804.6,1.0359601]
[1641359135342,0.0022737,3804.8,3804.6,2.0359601]
[1641359135645,0.01747435,3804.9,3804.7,0.3]
[1641359135843,0.01747435,3804.9,3804.8,0.379]
[1641359137379,2.61747435,3804.9,3804.8,0.379]
[1641359140278,2.65752454,3804.9,3804.8,0.379]
[1641359141125,2.65752454,3804.9,3804.8,0.329]
[1641359141524,2.65752454,3804.9,3804.6,1.3139901]
[1641359142023,2.65752454,3804.9,3804.7,0.3]
[1641359142024,0.0022737,3804.8,3804.7,0.3]
[1641359145278,2.96926907,3804.8,3804.7,0.3]
[1641359145985,0.0022737,3804.8,3804.7,0.3]
[1641359150749,1.6452437,3804.9,3804.8,1.31433]
[1641359150944,1.6452437,3804.9,3804.8,2.27143]
[1641359152378,1.6452437,3804.9,3804.8,2.57143]
[1641359153880,4.6120022,3804.9,3804.8,2.57143]
[1641359154481,1.6452437,3804.9,3804.8,2.57143]
[1641359155081,1.6452437,3804.9,3804.8,1.91433]
[1641359155282,4.6120022,3804.9,3804.8,1.91433]
[1641359156122,4.6120022,3804.9,3804.8,1.61433]
[1641359156327,4.6120022,3804.9,3804.8,1.31433]
[1641359157528,2.9667585,3804.9,3804.8,1.31433]
[1641359158128,2.9667585,3804.9,3804.8,1.91433]
[1641359158530,2.9667585,3805.2,3804.8,1.91433]
[1641359158730,2.9667585,3805.2,3805.0,1.3142975]
[1641359158932,2.96903219,3805.2,3805.0,1.3142975]
[1641359159131,2.96903219,3805.2,3805.0,1.6142975]
[1641359159469,4.86979868,3805.2,3805.0,1.6142975]
[1641359159669,1.89388145,3805.1,3805.0,1.6142975]
[1641359160373,2.96903219,3805.2,3805.0,1.6142975]
[1641359160871,2.9667585,3805.1,3805.0,1.6142975]
[1641359161576,2.9667585,3805.1,3805.0,1.9142975]
[1641359162175,2.9667585,3805.1,3805.0,1.6142975]
[1641359162375,2.9667585,3805.1,3805.0,1.9142975]
[1641359165130,2.4745585,3805.1,3805.0,4.79342731]
[1641359165327,1.9371585,3805.1,3805.0,20.13342731]
[1641359165528,1.9371585,3805.1,3805.0,18.6459793]
[1641359165729,1.30351515,3805.6,3805.3,0.65693]
[1641359165928,1.30351515,3805.6,3805.3,1.31387]
[1641359166129,0.00170527,3805.5,3805.3,1.25693]
[1641359166529,0.00113685,3805.4,3805.3,2.5708025]
[1641359166734,0.00113685,3805.4,3805.3,1.9138725]
[1641359166974,0.00113685,3805.4,3805.3,1.3138725]
[1641359168178,0.00113685,3805.4,3805.3,1.6138725]
[1641359168479,0.00113685,3805.4,3805.3,1.9138725]
[1641359170835,0.00113685,3805.4,3805.2,1.31385]
[1641359171839,0.01228462,3805.3,3805.2,1.31385]
[1641359172137,0.01228462,3805.3,3805.2,1.91385]
[1641359174482,0.01228462,3805.3,3805.2,1.31385]
[1641359175680,0.01228462,3805.3,3805.2,1.61385]
[1641359175881,0.01228462,3805.3,3805.2,1.91385]
[1641359177283,0.01228462,3805.3,3805.2,1.31385]
[1641359178530,0.01228462,3805.3,3805.2,1.91385]
[1641359181978,0.01228462,3805.3,3805.2,1.31385]
[1641359182184,0.01228462,3805.3,3805.0,1.31536685]
[1641359183186,0.01228462,3805.3,3805.0,1.97250035]
[1641359183785,0.01228462,3805.3,3805.0,2.57250035]
[1641359185826,0.01228462,3805.3,3805.0,1.26536685]
[1641359186030,0.01228462,3805.3,3805.0,0.00113685]
[1641359186432,4.2704307,3805.2,3804.9,0.00170527]
[1641359186632,1.95618915,3805.1,3804.9,0.00170527]
[1641359186833,4.2704307,3805.2,3804.9,0.00170527]
[1641359187033,4.28271532,3805.3,3804.9,0.00170527]
[1641359187236,2.0,3805.2,3804.9,0.00170527]
[1641359187434,4.28271532,3805.3,3804.9,0.30170527]
[1641359188234,1.30351515,3805.1,3804.9,0.30170527]
[1641359189493,1.30351515,3805.2,3804.9,0.30170527]
[1641359189878,1.87322623,3805.1,3804.9,0.30170527]
[1641359190085,4.2704307,3805.2,3804.9,0.30170527]
[1641359190684,2.96691555,3805.0,3804.9,0.30170527]
[1641359191185,4.2704307,3805.1,3804.9,0.30170527]
[1641359191586,4.2704307,3805.1,3804.9,0.95885667]
[1641359192188,2.96691555,3805.1,3804.9,0.95885667]
[1641359197390,0.01228747,3805.0,3804.9,0.95885667]
[1641359198391,2.97920302,3805.0,3804.9,0.95885667]
[1641359203742,2.97920302,3805.0,3804.9,0.30170527]
[1641359206983,4.93459283,3805.0,3804.9,0.30170527]
[1641359207583,4.93459283,3805.0,3804.9,0.00170527]
[1641359207983,4.93459283,3805.0,3804.4,0.00454739]
[1641359208233,1.05716566,3804.5,3804.4,0.00454739]
[1641359209230,2.0103408,3804.8,3804.4,0.60454739]
[1641359209435,4.29366516,3804.9,3804.6,0.65722]
[1641359209631,1.32674961,3804.9,3804.7,0.3]
[1641359209831,1.33905826,3804.9,3804.7,0.60284212]
[1641359210030,1.33905826,3804.9,3804.8,0.00227369]
[1641359210232,4.63007044,3804.9,3804.8,0.00227369]
[1641359210838,2.68898452,3804.9,3804.8,0.00227369]
[1641359211032,2.68898452,3804.9,3804.7,0.30284212]
[1641359211232,2.67667587,3804.9,3804.8,0.00227369]
[1641359211436,1.34992626,3804.9,3804.8,0.00227369]
[1641359214383,1.34992626,3804.9,3804.5,0.00397896]
[1641359214784,1.34992626,3804.9,3804.6,0.65725]
[1641359214984,1.34992626,3804.9,3804.7,0.3]
[1641359215185,1.34992626,3804.9,3804.7,0.30284212]
[1641359215385,1.34992626,3804.9,3804.8,0.00227369]
[1641359217535,1.38198519,3804.9,3804.8,0.00227369]
[1641359220278,1.38198519,3804.9,3804.5,0.00397896]
[1641359220678,1.38198519,3804.9,3804.5,0.30397896]
[1641359220885,0.65733,3804.8,3804.5,0.00397896]
[1641359221084,0.65733,3804.8,3803.7,4.969702]
[1641359221085,0.65733,3804.8,3804.6,0.00341054]
[1641359221283,0.65733,3804.8,3803.8,0.00795793]
[1641359221485,1.49783,3804.8,3803.8,0.00795793]
[1641359221688,0.379,3804.7,3803.8,0.00795793]
[1641359221885,0.379,3804.7,3803.5,7.97998947]
[1641359221886,0.65745,3804.3,3803.7,0.00852635]
[1641359222090,0.65745,3804.3,3803.6,0.00909477]
[1641359222486,1.25075434,3804.0,3803.6,0.00909477]
[1641359222785,0.6574699,3804.5,3803.6,0.00909477]
[1641359222786,1.0,3804.4,3803.6,0.00909477]
[1641359223238,0.01229831,3804.4,3803.6,0.00909477]
[1641359223434,1.33904792,3804.4,3803.6,0.00909477]
[1641359223735,0.65744,3804.2,3803.6,0.00909477]
[1641359224334,0.65744,3804.2,3803.6,0.66652477]
[1641359224538,0.65744,3804.2,3803.7,0.3]
[1641359224737,0.65744,3804.2,3803.7,0.30852635]
[1641359224937,0.65744,3804.2,3803.8,0.00795793]
[1641359224938,1.72611491,3804.2,3803.8,0.00795793]
[1641359225146,2.96764057,3804.1,3803.8,0.00795793]
[1641359225343,3.62510057,3804.1,3803.8,0.00795793]
[1641359226746,2.96764057,3804.0,3803.8,0.00795793]
[1641359228185,1.06867491,3804.2,3803.8,0.00795793]
[1641359228384,2.09715639,3804.1,3803.8,0.00795793]
[1641359228584,3.09715639,3804.1,3803.8,0.00795793]
[1641359228784,3.09715639,3804.1,3803.6,0.00909477]
[1641359229088,2.09715639,3804.1,3803.6,0.00909477]
[1641359229284,1.87881653,3804.1,3803.6,0.00909477]
[1641359229485,2.92405932,3804.1,3803.6,0.00909477]
[1641359229886,5.52405932,3804.1,3803.6,0.00909477]
[1641359230746,3.6,3804.1,3803.6,0.00909477]
[1641359231550,3.6,3804.1,3803.7,0.65741]
[1641359231754,1.21381909,3803.9,3803.7,0.65741]
[1641359231951,1.21381909,3803.9,3803.8,0.00795793]
[1641359232351,1.21381909,3803.9,3803.6,0.00909477]
[1641359232953,1.21381909,3803.9,3803.6,0.30909477]
[1641359233153,1.21381909,3803.9,3803.6,0.3]
[1641359233353,1.21381909,3803.9,3803.7,0.00852635]
[1641359233755,1.89801816,3803.8,3803.7,0.00852635]
[1641359233954,0.01585034,3803.8,3803.4,0.66770162]
[1641359234154,0.01585034,3803.8,3803.5,0.0096632]
[1641359234590,0.01585034,3803.8,3803.4,0.01023162]
[1641359235191,0.01585034,3803.8,3803.5,0.6574218]
[1641359235591,0.01585034,3803.8,3803.6,0.00909477]
[1641359237592,0.01585034,3803.8,3803.5,0.0096632]
[1641359238639,0.01585034,3803.8,3803.4,0.01023162]
[1641359239044,1.88384602,3803.8,3803.4,0.01023162]
[1641359239446,0.65755,3803.7,3803.4,0.01023162]
[1641359239649,0.01585034,3803.8,3803.4,0.01023162]
[1641359241346,0.01585034,3803.8,3803.3,0.01080004]
[1641359241747,0.01585034,3803.8,3803.5,0.65747]
[1641359241985,0.01585034,3803.8,3803.5,0.95747]
[1641359242195,0.01585034,3803.8,3803.6,0.00909477]
[1641359243793,0.0479891,3803.8,3803.6,0.00909477]
[1641359248842,1.95562184,3803.8,3803.6,0.00909477]
[1641359249043,0.0479891,3803.8,3803.6,0.00909477]
[1641359249242,2.96780901,3803.7,3803.6,0.00909477]
[1641359249485,4.90795479,3803.7,3803.6,0.00909477]
[1641359249682,4.90795479,3803.7,3803.4,0.01023162]
[1641359250283,4.90795479,3803.7,3803.1,0.01193689]
[1641359250482,2.96780901,3803.7,3803.2,1.31492]
[1641359250987,2.96780901,3803.7,3803.4,0.65746]
[1641359251188,2.96780901,3803.6,3803.4,0.65746]
[1641359251391,2.96780901,3803.6,3803.5,0.0096632]
[1641359252192,2.96780901,3803.7,3803.5,0.0096632]
[1641359252791,2.96780901,3803.7,3803.5,0.6670981]
[1641359252992,2.96780901,3803.7,3803.6,0.3]
[1641359253242,2.96780901,3803.7,3803.6,0.30909477]
[1641359254047,2.96780901,3803.7,3803.6,0.00909477]
[1641359254248,1.91893522,3803.8,3803.6,0.00909477]
[1641359254450,0.0479891,3803.8,3803.6,0.00909477]
[1641359254746,1.94088468,3803.8,3803.6,0.00909477]
[1641359254952,0.0479891,3803.8,3803.4,0.01023162]
[1641359255148,2.96785961,3803.7,3803.0,0.3]
[1641359255551,2.96785961,3803.7,3803.1,0.01193689]
[1641359256849,3.62539961,3803.7,3803.2,0.95754]
[1641359257090,2.96785961,3803.7,3803.1,0.66942679]
[1641359257291,2.96785961,3803.7,3803.3,0.01080004]
[1641359257495,2.96785961,3803.6,3803.2,0.61136847]
[1641359257692,2.96785961,3803.6,3803.4,0.65749]
[1641359258091,2.96785961,3803.6,3803.5,0.0096632]
[1641359258691,2.96785961,3803.7,3803.5,0.0096632]
[1641359259093,2.96785961,3803.6,3803.5,0.0096632]
[1641359259693,2.98371305,3803.6,3803.5,0.0096632]
[1641359260096,0.01585344,3803.6,3803.5,0.0096632]
[1641359260841,2.98371305,3803.6,3803.5,0.0096632]
[1641359261846,3.0158625,3803.6,3803.5,0.0096632]
[1641359270461,2.9679625,3803.6,3803.5,2.17899757]
[1641359270648,2.6,3804.1,3803.6,2.65]
[1641359270848,2.6,3804.1,3803.8,0.6572]
[1641359271047,2.6,3804.1,3803.9,0.379]
[1641359271249,2.6,3804.1,3803.9,2.0008395]
[1641359271448,2.6,3804.1,3804.0,0.00682108]
[1641359273095,2.6,3804.1,3804.0,1.93511403]
[1641359275395,2.6,3804.1,3804.0,0.00682108]
[1641359282902,2.6,3804.1,3803.8,0.6572]
[1641359282903,2.6,3804.1,3803.9,0.0073895]
[1641359284349,2.6,3804.1,3803.9,0.6647464]
[1641359284548,2.6,3804.1,3804.0,0.3]
[1641359284747,2.6,3804.1,3804.0,0.00682108]
[1641359284949,2.6,3804.1,3804.0,0.30682108]
[1641359285151,2.6,3804.1,3804.0,0.00682108]
[1641359286054,2.6,3804.1,3803.9,0.0073895]
[1641359286455,2.6,3804.1,3803.9,0.3073895]
[1641359286855,2.6,3804.1,3804.0,0.00682108]
[1641359287094,2.6,3804.1,3804.0,0.30682108]
[1641359290944,5.56761003,3804.1,3804.0,0.30682108]
[1641359293045,5.56761003,3804.1,3804.0,2.06568632]
[1641359293447,5.56761003,3804.1,3804.0,0.30682108]
[1641359294488,5.56761003,3804.1,3804.0,2.08361132]
[1641359295092,5.56761003,3804.1,3804.0,2.74090132]
[1641359299649,2.6,3804.1,3804.0,2.74090132]
[1641359300853,2.6,3804.1,3804.0,0.96411108]
[1641359302492,2.6,3804.1,3804.0,0.30682108]
[1641359311103,2.59381,3804.1,3804.0,2.08653419]
[1641359311296,2.59381,3804.1,3804.0,2.07091419]
[1641359311498,2.58546,3804.1,3804.0,2.07091419]
[1641359312097,2.58546,3804.1,3804.0,1.78653419]
[1641359313341,2.58546,3804.1,3804.0,2.08653419]
[1641359313543,2.49325,3804.1,3804.0,2.08653419]
[1641359313749,2.49325,3804.1,3804.0,0.24334108]
[1641359315048,2.49325,3804.1,3804.0,2.01749722]
[1641359315550,2.48295,3804.1,3804.0,2.01749722]
[1641359315749,2.48295,3804.1,3804.0,0.24334108]
[1641359316750,2.48295,3804.1,3804.0,0.23652]
[1641359319998,2.48295,3804.1,3804.0,2.00794857]
[1641359320395,2.48295,3804.1,3804.0,0.23652]
[1641359320600,2.48295,3804.1,3804.0,1.99715031]
[1641359322246,2.48295,3804.1,3804.0,0.23652]
[1641359323647,2.48295,3804.1,3804.0,1.33244556]
[1641359323847,2.48295,3804.1,3804.0,3.12315537]
[1641359324248,2.48295,3804.1,3804.0,1.33244556]
[1641359324493,2.48295,3804.1,3804.0,0.23652]
[1641359327601,2.48295,3804.1,3804.0,2.04429366]
[1641359329641,0.01230865,3805.1,3804.1,4.7]
[1641359329841,0.01230865,3805.1,3804.7,0.65708]
[1641359330045,0.01230865,3805.1,3804.8,0.65709]
[1641359330443,0.01230865,3805.1,3804.9,0.00170527]
[1641359331047,0.01230865,3805.1,3805.0,0.65709]
[1641359331249,1.32190678,3805.5,3805.0,0.65709]
[1641359331446,1.40951881,3805.6,3805.0,0.95822685]
[1641359331646,1.40951881,3805.6,3805.0,0.60113685]
[1641359331847,2.96821006,3805.5,3805.0,0.60113685]
[1641359332099,2.96821006,3805.5,3805.2,1.97124]
[1641359332302,0.00113685,3805.4,3805.3,0.3]
[1641359332702,0.00113685,3805.4,3805.3,1.2570552]
[1641359335603,2.96764164,3805.4,3805.3,1.2570552]
[1641359339991,5.56764164,3805.4,3805.3,1.2570552]
[1641359340595,7.50846683,3805.4,3805.3,0.6]
[1641359340794,7.50846683,3805.4,3805.3,0.3]
[1641359341000,7.50846683,3805.4,3805.0,0.00113685]
[1641359341198,1.2057,3805.3,3805.0,0.00113685]
[1641359341397,2.3669695,3805.2,3805.0,0.00113685]
[1641359341596,2.3669695,3805.2,3804.3,0.00511581]
[1641359342096,1.33581966,3804.4,3804.3,0.00511581]
[1641359342898,2.39597221,3805.1,3804.3,0.60511581]
[1641359342899,3.24804129,3805.1,3804.3,0.60511581]
[1641359343099,1.32547383,3804.9,3804.6,0.6572266]
[1641359343351,0.01230865,3804.8,3804.6,0.6572266]
[1641359343557,0.01230865,3804.8,3804.7,0.00284212]
[1641359344151,1.33733892,3804.8,3804.7,0.00284212]
[1641359345357,1.32503027,3804.8,3804.7,0.00284212]
[1641359346358,1.35570819,3804.8,3804.7,0.00284212]
[1641359347393,1.36498392,3804.8,3804.7,0.00284212]
[1641359347796,1.36498392,3804.8,3804.6,0.00341054]
[1641359348195,1.90398599,3804.7,3804.6,0.00341054]
[1641359348595,1.90398599,3804.7,3804.5,0.00397896]
[1641359348897,1.90398599,3804.7,3803.8,0.00795793]
[1641359349094,1.36498392,3804.8,3803.8,0.00795793]
[1641359349095,3.24544803,3804.8,3803.8,0.00795793]
[1641359349295,1.32547383,3804.6,3803.8,0.00795793]
[1641359349696,1.32547383,3804.6,3804.2,0.65727]
[1641359350095,2.69045775,3804.8,3804.3,0.00511581]
[1641359350499,2.69045775,3804.8,3804.3,0.30511581]
[1641359350737,1.36498392,3804.8,3804.3,0.96236581]
[1641359350940,1.36498392,3804.8,3804.4,0.66179229]
[1641359351139,1.36498392,3804.8,3804.5,0.65724]
[1641359351338,1.36498392,3804.8,3804.5,0.66121896]
[1641359351540,1.36498392,3804.8,3804.6,0.00341054]
[1641359352946,0.03995365,3804.8,3804.6,0.00341054]
[1641359354149,1.02127526,3804.7,3804.6,0.00341054]
[1641359358454,3.98833337,3804.7,3804.6,0.00341054]
[1641359361454,6.58833337,3804.7,3804.6,0.00341054]
[1641359362196,6.58833337,3804.7,3804.6,0.30341054]
[1641359362998,6.58833337,3804.7,3804.6,0.00341054]
[1641359363500,5.56705811,3804.7,3804.6,0.00341054]
[1641359368453,0.30173811,3804.7,3804.6,17.50356648]
[1641359368653,0.03995365,3804.8,3804.7,3.7868]
[1641359368654,0.02155365,3804.8,3804.7,3.7868]
[1641359368954,0.01230865,3805.2,3804.8,17.96775]
[1641359369152,0.01230865,3805.2,3805.0,0.65693]
[1641359369352,0.01230865,3805.2,3805.1,15.719]
[1641359369599,1.32547383,3805.4,3805.1,16.019]
[1641359369807,0.9929,3806.2,3805.4,1.38899463]
[1641359370007,0.9929,3806.2,3805.6,0.65692]
[1641359370203,0.9929,3806.2,3805.9,0.65692]
[1641359370405,1.24241355,3806.4,3805.9,0.65692]
[1641359370603,1.24241355,3806.4,3806.1,0.65692]
[1641359370905,2.6,3806.2,3806.1,0.65692]
[1641359371209,2.60568424,3806.2,3806.1,0.65692]
[1641359371804,2.60568424,3806.2,3806.1,0.95692]
[1641359372003,2.60568424,3806.2,3806.1,1.25692]
[1641359372204,2.60568424,3806.2,3806.1,0.95692]
[1641359372606,2.60568424,3806.2,3806.1,0.65692]
[1641359372807,2.60568424,3806.2,3806.1,0.95692]
[1641359373651,2.60568424,3806.2,3806.1,1.25692]
[1641359373852,2.60568424,3806.2,3806.1,0.95692]
[1641359374855,2.60568424,3806.2,3806.1,0.3]
[1641359375059,4.56743823,3806.2,3805.9,1.31384]
[1641359375258,4.56743823,3806.2,3805.2,0.65712]
[1641359375458,1.00511581,3806.1,3805.2,0.65712]
[1641359375660,2.35856243,3806.0,3804.9,0.00170527]
[1641359375858,2.35856243,3806.0,3805.2,1.31414]
[1641359375859,2.36310982,3806.0,3805.2,1.31414]
[1641359376059,0.00397897,3805.9,3805.2,1.31414]
[1641359376460,0.00341054,3805.8,3805.2,1.61414]
[1641359376858,0.00284212,3805.7,3805.2,1.61414]
[1641359377299,0.00227369,3805.6,3805.2,1.61414]
[1641359377801,2.86562,3806.1,3805.2,1.61414]
[1641359377802,0.00170527,3805.5,3805.2,1.61414]
[1641359378197,0.00113685,3805.4,3805.2,1.61414]
[1641359378698,0.00113685,3805.4,3805.2,1.31414]
[1641359380942,0.00113685,3805.4,3805.2,1.61414]
[1641359381843,2.60113685,3805.4,3805.2,1.61414]
[1641359382650,2.60113685,3805.4,3805.2,2.27118]
[1641359383850,2.60113685,3805.4,3805.2,1.61414]
[1641359384048,2.63181061,3805.4,3805.2,1.61414]
[1641359386799,2.63181061,3805.4,3805.2,1.31414]
[1641359390948,2.96659742,3805.3,3805.2,1.31414]
[1641359391848,2.96659742,3805.3,3805.2,1.61414]
[1641359397852,2.96659742,3805.3,3805.2,1.31414]
[1641359398853,2.96659742,3805.3,3805.2,1.61414]
[1641359430695,2.96659742,3805.3,3805.2,1.91414]
[1641359435051,2.96659742,3805.3,3805.2,1.61414]
[1641359438817,2.96659742,3805.3,3805.2,1.31414]
[1641359439016,4.90755992,3805.3,3805.2,1.31414]
[1641359439217,4.90755992,3805.3,3805.0,0.6572]
[1641359439518,2.4124303,3805.1,3804.7,0.0368]
[1641359440119,3.32547383,3804.8,3804.7,0.0368]
[1641359440316,1.32547383,3804.8,3804.7,0.0368]
[1641359440516,1.98279383,3804.8,3804.7,0.03964212]
[1641359441142,0.65732,3804.8,3804.7,4.212e-05]
[1641359441343,3.62391742,3804.8,3804.7,4.212e-05]
[1641359441543,3.62391742,3804.8,3804.0,0.00402108]
[1641359441747,2.26018957,3804.7,3804.0,0.00402108]
[1641359441948,0.65734,3804.6,3804.0,0.00402108]
[1641359442249,2.02024468,3804.5,3804.0,0.66133108]
[1641359442450,1.93167875,3804.5,3804.0,0.66133108]
[1641359442647,2.04248175,3804.7,3804.1,0.00345266]
[1641359442847,2.96659742,3804.5,3804.1,0.00345266]
[1641359443046,1.9631101,3804.4,3804.1,0.00345266]
[1641359443248,1.9631101,3804.4,3804.1,1.31805266]
[1641359443647,1.9631101,3804.4,3804.2,0.00288423]
[1641359444250,1.9631101,3804.4,3804.0,0.3]
[1641359444251,2.96659742,3804.3,3804.1,0.00345266]
[1641359444693,2.96659742,3804.3,3804.1,0.66075266]
[1641359444893,2.96659742,3804.3,3804.1,0.6573]
[1641359445096,2.96659742,3804.3,3804.2,0.30288423]
[1641359445296,2.96659742,3804.3,3804.2,0.96018423]
[1641359446102,5.56659742,3804.3,3804.2,1.26018423]
[1641359453695,2.6,3804.3,3804.2,1.26018423]
[1641359458753,2.6,3804.3,3804.2,0.96018423]
[1641359458956,2.6,3804.3,3804.2,3.24039979]
[1641359459154,2.6,3804.3,3804.2,1.26018423]
[1641359459354,2.6,3804.3,3804.2,2.26018423]
[1641359459596,2.6,3804.3,3804.2,1.26018423]
[1641359470107,2.6,3804.3,3804.2,0.96018423]
[1641359470306,2.6,3804.3,3804.2,1.26018423]
[1641359470505,2.6,3804.3,3804.2,0.96018423]
[1641359472462,2.6,3804.3,3804.2,0.66018423]
[1641359472664,2.6,3804.3,3804.2,0.96018423]
[1641359472861,2.6,3804.3,3804.2,0.66018423]
[1641359473061,2.6,3804.3,3804.2,0.96018423]
[1641359473764,2.6,3804.3,3804.2,0.30288423]
[1641359473966,2.6,3804.3,3804.2,0.00288423]
[1641359474597,5.56757677,3804.3,3804.2,0.00288423]
[1641359474998,2.6,3804.3,3804.1,0.6]
[1641359475598,2.6,3804.3,3804.1,1.25733]
[1641359476203,5.56757677,3804.3,3804.1,1.25733]
[1641359476606,2.96757677,3804.2,3804.1,1.25733]
[1641359477104,2.96757677,3804.2,3804.1,1.26078266]
[1641359478251,4.21897423,3804.2,3804.1,1.26078266]
[1641359479856,4.21897423,3804.2,3804.1,0.60345266]
[1641359483299,2.96757677,3804.2,3804.1,0.60345266]
[1641359489699,2.96757677,3804.2,3804.1,0.30345266]
[1641359494848,2.96757677,3804.2,3804.1,0.60345266]
[1641359495047,2.96757677,3804.2,3804.1,1.17875266]
[1641359495248,2.96757677,3804.2,3804.1,3.22101528]
[1641359495450,2.96757677,3804.2,3804.1,1.55775266]
[1641359495647,2.96757677,3804.2,3804.1,16.89775266]
[1641359496048,2.96757677,3804.2,3804.1,20.5326349]
[1641359496550,2.63068271,3804.3,3804.1,20.5326349]
[1641359497014,1.31821642,3804.7,3804.2,22.03580174]
[1641359497208,1.31821642,3805.1,3804.5,15.34]
[1641359497413,1.31821642,3805.1,3804.6,0.379]
[1641359497608,0.00109473,3804.9,3804.6,0.379]
[1641359498108,0.00109473,3804.9,3804.7,0.6570619]
[1641359498309,0.00109473,3804.9,3804.8,0.379]
[1641359498508,0.00109473,3804.9,3804.8,0.679]
[1641359498808,0.00695668,3804.9,3804.8,0.679]
[1641359500411,0.00695668,3804.9,3804.8,0.3]
[1641359500412,2.97384947,3804.9,3804.8,0.3]
[1641359500612,0.00695668,3804.9,3804.7,1.31412]
[1641359501258,2.96689279,3804.8,3804.7,1.31412]
[1641359501558,2.96689279,3804.8,3804.7,0.65706]
[1641359505804,2.96689279,3804.8,3804.7,0.95706]
[1641359506004,2.96689279,3804.8,3804.7,1.25706]
[1641359506809,2.96689279,3804.8,3804.7,0.95706]
[1641359509453,2.96689279,3804.8,3804.7,1.25706]
[1641359520302,0.00695668,3804.9,3804.7,1.25706]
[1641359521809,0.00695668,3804.9,3804.6,0.06351493]
[1641359522108,0.00695668,3804.9,3803.8,0.6573]
[1641359522109,0.13387104,3804.1,3803.8,0.6573]
[1641359522308,0.13387104,3804.1,3803.3,0.29720741]
[1641359522611,0.13387104,3804.1,3803.9,0.00227369]
[1641359523009,2.77462779,3804.0,3803.5,0.00454739]
[1641359523247,2.77462779,3804.0,3803.3,0.00568423]
[1641359523452,0.6575444,3803.8,3803.3,0.00568423]
[1641359523649,0.379,3803.8,3803.3,0.00568423]
[1641359524049,0.38843168,3803.8,3802.9,0.65751]
[1641359524250,1.01149882,3803.1,3803.0,0.00738951]
[1641359525454,1.01149882,3803.1,3803.0,0.30738951]
[1641359525654,2.07371699,3803.7,3803.1,0.65749]
[1641359525854,2.07371699,3803.7,3803.3,0.65748]
[1641359525855,2.06973995,3803.7,3803.3,0.65748]
[1641359526158,2.06973995,3803.7,3803.4,0.00511581]
[1641359526159,3.38795637,3803.7,3803.4,0.00511581]
[1641359526755,1.34708536,3803.5,3803.4,0.00511581]
[1641359528208,1.34708536,3803.5,3803.3,0.82259581]
[1641359528408,1.34708536,3803.5,3803.3,1.12259581]
[1641359528811,1.34708536,3803.5,3803.3,0.82259581]
[1641359529211,3.94708536,3803.5,3803.3,0.82259581]
[1641359529410,0.00943498,3803.4,3803.3,0.82259581]
[1641359529810,0.00943498,3803.4,3803.3,0.52259581]
[1641359531849,0.00943498,3803.4,3803.3,0.82259581]
[1641359533852,0.00943498,3803.4,3803.3,1.12259581]
[1641359534060,0.00943498,3803.4,3803.3,3.22945378]
[1641359534255,2.6,3803.5,3803.3,3.22945378]
[1641359534500,2.6,3803.5,3803.4,3.05728]
[1641359534703,2.6,3803.5,3803.4,0.65728]
[1641359538006,2.6,3803.5,3803.3,1.12259581]
[1641359539470,2.63068855,3803.5,3803.3,1.12259581]
[1641359539669,1.25552153,3803.4,3803.3,1.12259581]
[1641359539969,1.26023899,3803.4,3803.3,1.12259581]
[1641359540170,1.26023899,3803.4,3803.3,0.82259581]